fUSD/lending_fUSD_20251019
["ID","MTS","AMOUNT","RATE_DAILY","PERIOD"]
[391823473,1760886640028,-578.18236878,0.000341,2]
[391823474,1760886640060,-12384.39841306,0.000341,2]
[391823475,1760886640072,-3547.39997271,0.000341,2]
[391823476,1760886640083,-250.41851228,0.000341,2]
[391823477,1760886640172,-4431.73209848,0.000341,2]
[391823478,1760886640183,-4368.65980068,0.000341,2]
[391823479,1760886640195,-4128.63986883,0.000341,2]
[391823480,1760886640206,-4432.26839026,0.000341,2]
[391823481,1760886640216,-12281.83887251,0.000341,2]
[391823482,1760886640227,-1363.68834929,0.000341,2]
[391823483,1760886640238,-13929.6127768,0.000341,2]
[391823484,1760886640249,-3829.98099585,0.000341,2]
[391823485,1760886640261,-7249.24528713,0.000341,2]
[391823486,1760886640272,-22729.64954248,0.000341,2]
[391823701,1760886642937,-1240.0779603,0.000341,2]
[391823702,1760886642951,-820.70894141,0.000341,2]
[391823703,1760886642963,-637.54685,0.000341,2]
[391823704,1760886643043,-1163.61178274,0.000341,2]
[391823705,1760886643056,-424.394407,0.000341,2]
[391823716,1760886645913,-69397.3978763,0.000341,2]
[391823717,1760886645926,-361883.49522067,0.000341,2]
[391823718,1760886645940,-21734.0,0.000341,2]
[391823719,1760886645952,-195816.6877448,0.000341,2]
[391823729,1760886696991,3633697.05396768,0.00028767,120]
[391823730,1760886725835,207.4,0.00034187,30]
[391823731,1760886728689,500.0,0.00034187,30]
[391823732,1760886731970,200.0,0.00034187,30]
[391823743,1760887328949,306.9,0.00034177,30]
[391823749,1760887618328,7969.33614043,0.000162,5]
[391823750,1760887626575,-166.70255021,0.00016199,2]
[391823751,1760887628588,-133.29744979,0.00016199,2]
[391823752,1760887628611,-18.63501795,0.00016199,2]
[391823753,1760887631073,-236.36498205,0.00016199,2]
[391823754,1760887631100,-65.63501795,0.000162,5]
[391823755,1760887632758,-153.93,0.000162,5]
[391823756,1760887635819,-288.47429644,0.000162,5]
[391823758,1760887638592,181.70482992,0.0001305,2]
[391823759,1760887653651,-151.0,0.00017091,2]
[391823760,1760887653685,-420.0,0.00017707,2]
[391823761,1760887653715,-250.0,0.00017819,2]
[391823762,1760887653744,-587.0,0.00019356,2]
[391823763,1760887653772,-150.0,0.0002,2]
[391823764,1760887656377,151.0,0.00017025,2]
[391823765,1760887673026,151.0,0.00017009,2]
[391823766,1760887676201,21582.0,0.00015,2]
[391823767,1760887676226,16944.29517008,0.00015,2]
[391823768,1760887676256,49814.62,0.00015,2]
[391823769,1760887676282,50000.0,0.00015,2]
[391823770,1760887676303,50000.0,0.00015,2]
[391823771,1760887676325,50000.0,0.00015,2]
[391823772,1760887676358,20000.0,0.00015,2]
[391823773,1760887676384,100000.0,0.00015,2]
[391823774,1760887676417,100000.0,0.00015,2]
[391823775,1760887676444,50000.0,0.00015,2]
[391823776,1760887677747,-154.04001401,0.00015,2]
[391823777,1760887703101,-298.72270789,0.0001439,2]
[391823778,1760887704539,-179.50218907,0.0001439,2]
[391823779,1760887707597,-250.0,0.0001439,2]
[391823790,1760887776553,-298.722708,0.00014318,2]
[391823791,1760887776575,-91.517292,0.0001439,2]
[391823796,1760887822800,-48.59590349,0.0001439,2]
[391823797,1760887822823,-133.10892643,0.00014695,2]
[391823804,1760887832088,-105.34626598,0.00014695,2]
[391823805,1760887832099,-150.68384101,0.00014999,2]
[391823806,1760887832109,-409.43158322,0.00014999,2]
[391823807,1760887832118,-500.0,0.00014999,2]
[391823808,1760887832128,-221.3389781,0.00014999,2]
[391823809,1760887832138,-300.0,0.00014999,2]
[391823810,1760887832147,-300.0,0.00014999,2]
[391823811,1760887832157,-300.0,0.00014999,2]
[391823812,1760887832166,-2330.66732169,0.00015,2]
[391823813,1760887832178,-178570.63726682,0.00015,2]
[391823814,1760887832191,-20069.46003764,0.00015,2]
[391823815,1760887832202,-15872.09900406,0.00015,2]
[391823816,1760887832218,-42304.06052284,0.00015,2]
[391823817,1760887832229,-545.31,0.00015,2]
[391823818,1760887832240,-456.7858882,0.00015,2]
[391823819,1760887832258,-550.14099999,0.00015,2]
[391823820,1760887832273,-1396.7875919,0.00015,2]
[391823821,1760887832284,-2182.37961044,0.00015,2]
[391823826,1760887837851,-5572.0,0.00015,2]
[391823827,1760887837863,-501.01632575,0.00015,2]
[391823828,1760887837873,-500.0,0.00015,2]
[391823829,1760887837883,-533.15473545,0.00015,2]
[391823830,1760887837893,-500.0,0.00015,2]
[391823831,1760887837902,-500.0,0.00015,2]
[391823832,1760887837911,-500.0,0.00015,2]
[391823833,1760887837920,-500.0,0.00015,2]
[391823834,1760887837930,-502.80166226,0.00015,2]
[391823835,1760887837939,-500.0,0.00015,2]
[391823836,1760887837948,-500.0,0.00015,2]
[391823837,1760887837957,-500.0,0.00015,2]
[391823838,1760887837967,-500.0,0.00015,2]
[391823839,1760887837977,-500.0,0.00015,2]
[391823840,1760887837986,-1000.0,0.00015548,2]
[391823841,1760887837996,-171.73293364,0.00015548,2]
[391823842,1760887838005,-500.0,0.00015548,2]
[391823843,1760887838015,-500.0,0.00015548,2]
[391823844,1760887838024,-500.0,0.00015548,2]
[391823845,1760887838035,-500.0,0.00015548,2]
[391823846,1760887838044,-193.0,0.00015829,2]
[391823847,1760887838054,-250.0,0.00015829,2]
[391823848,1760887838064,-151.0,0.00016037,2]
[391823849,1760887838074,-1124.30168301,0.00016096,2]
[391823850,1760887838084,-151.0,0.00016127,2]
[391823851,1760887838094,-151.0,0.0001622,2]
[391823852,1760887838104,-420.0,0.00016416,2]
[391823853,1760887838113,-150.38637213,0.00016499,2]
[391823854,1760887838123,-250.0,0.00016499,2]
[391823855,1760887838133,-523.0,0.00017966,2]
[391823856,1760887838143,-169.62,0.00022135,2]
[391823857,1760887838163,-298.21119855,0.00023,2]
[391823858,1760887838174,-10000.0,0.00024658,120]
[391823859,1760887838189,-1000.70670293,0.00026,7]
[391823860,1760887838199,-166.66,0.00026333,30]
[391823861,1760887838209,-876.33,0.00026463,2]
[391823862,1760887838220,-166.66,0.00026888,30]
[391823863,1760887838232,-193.30098383,0.00026966,2]
[391823864,1760887838242,-161.55424874,0.00027,2]
[391823865,1760887838254,-8801.6487404,0.00027038,3]
[391823866,1760887838265,-331.0,0.00027047,2]
[391823867,1760887838276,-77802.28,0.00027048,2]
[391823868,1760887838287,-1000.0,0.00027066,2]
[391823869,1760887838297,-318.53,0.00027345,2]
[391823870,1760887838307,-1760.32974808,0.00027432,3]
[391823871,1760887838316,-166.66,0.00027442,30]
[391823872,1760887838326,-250.0,0.00027498,2]
[391823873,1760887838336,-182.56,0.0002752,2]
[391823874,1760887838345,-150.0,0.00027562,2]
[391823875,1760887838355,-1500.0,0.00027585,16]
[391823876,1760887838365,-193.30098376,0.00027982,2]
[391823877,1760887838375,-5280.98924424,0.00027989,3]
[391823878,1760887838384,-166.66,0.00027996,30]
[391823879,1760887838394,-514.77871536,0.00027999,2]
[391823880,1760887838411,-451.96669107,0.00027999,2]
[391823883,1760887839965,-151.0,0.00015984,2]
[391823884,1760887839975,-200.0,0.00026326,2]
[391823885,1760887839985,-1322.72730934,0.00027999,2]
[391823886,1760887839997,-593.685,0.00027999,2]
[391823887,1760887840009,-19355.9784289,0.00027999,2]
[391823888,1760887840018,-150.00000044,0.00028,60]
[391823889,1760887840028,-1760.32974808,0.00028541,3]
[391823890,1760887840039,-166.66,0.00028551,30]
[391823891,1760887840055,-547.0,0.000286,2]
[391823892,1760887840065,-1760.32974808,0.00028658,3]
[391823893,1760887840078,-1760.32974808,0.00028662,3]
[391823894,1760887840090,-504.66685398,0.00028667,2]
[391823895,1760887840100,-1281.495,0.00028667,20]
[391823896,1760887840109,-175.29374306,0.00028667,2]
[391823897,1760887840119,-1232.70077101,0.00028667,2]
[391823898,1760887840128,-174.79700552,0.00028667,2]
[391823899,1760887840139,-603.44022467,0.00028667,2]
[391823900,1760887840149,-1232.70077101,0.00028668,2]
[391823901,1760887840159,-603.44022462,0.00028668,2]
[391823902,1760887840168,-1232.70077101,0.00028668,2]
[391823903,1760887840179,-603.44022462,0.00028668,2]
[391823904,1760887840192,-1232.70077101,0.00028669,2]
[391823905,1760887840202,-603.44022462,0.00028669,2]
[391823906,1760887840211,-1232.70077101,0.0002867,2]
[391823907,1760887840221,-603.44022462,0.0002867,2]
[391823908,1760887840231,-1232.70077101,0.0002867,2]
[391823909,1760887840241,-603.44022462,0.0002867,2]
[391823910,1760887840251,-1232.70077101,0.00028671,2]
[391823911,1760887840262,-603.44022462,0.00028671,2]
[391823912,1760887840271,-1232.70077101,0.00028672,2]
[391823913,1760887840281,-603.44022462,0.00028672,2]
[391823914,1760887840290,-1232.70077101,0.00028672,2]
[391823915,1760887840300,-603.44022462,0.00028672,2]
[391823916,1760887840310,-1232.70077101,0.00028673,2]
[391823917,1760887840319,-603.44022462,0.00028673,2]
[391823918,1760887840328,-173476.02560575,0.000287,2]
[391823919,1760887840340,-860.27037324,0.000287,2]
[391823920,1760887840351,-9552.20132276,0.000287,2]
[391823921,1760887840362,-5447.1225,0.000287,2]
[391823922,1760887840374,-543.65,0.000287,2]
[391823937,1760887842997,-793.39062848,0.000287,2]
[391823938,1760887843173,-4646.50722347,0.000287,2]
[391823939,1760887843188,-1047424.16997816,0.000287,2]
[391823940,1760887843198,-1079.9286,0.00028712,10]
[391823941,1760887843208,-1760.32974808,0.0002874,3]
[391823942,1760887843217,-7041.31899232,0.00028747,3]
[391823943,1760887843226,-151.0,0.0002875,2]
[391823944,1760887843238,-151.0,0.0002875,2]
[391823945,1760887843247,-151.0,0.0002875,2]
[391823946,1760887843257,-151.0,0.0002875,2]
[391823947,1760887843268,-151.0,0.0002875,2]
[391823948,1760887843278,-151.0,0.0002875,2]
[391823949,1760887843288,-151.0,0.0002875,2]
[391823950,1760887843298,-151.0,0.0002875,2]
[391823951,1760887843307,-151.0,0.0002875,2]
[391823952,1760887843473,-151.0,0.0002875,2]
[391823953,1760887843483,-151.0,0.0002875,2]
[391823954,1760887843493,-151.0,0.0002875,2]
[391823955,1760887843503,-151.0,0.0002875,2]
[391823956,1760887843513,-173.36787212,0.0002875,2]
[391823957,1760887843522,-151.0,0.0002875,2]
[391823958,1760887843533,-151.0,0.0002875,2]
[391823959,1760887843543,-151.0,0.0002875,2]
[391823960,1760887843553,-151.0,0.0002875,2]
[391823961,1760887843563,-151.0,0.0002875,2]
[391823962,1760887843573,-161.17841082,0.0002875,2]
[391823963,1760887843583,-665.9,0.0002875,7]
[391823964,1760887843593,-150.0,0.0002875,2]
[391823965,1760887843604,-200.0,0.0002875,2]
[391823966,1760887843614,-150.0,0.0002875,2]
[391823967,1760887843624,-200.0,0.0002875,2]
[391823968,1760887843634,-150.0,0.0002875,2]
[391823969,1760887843643,-150.0,0.0002875,2]
[391823970,1760887843653,-150.0,0.0002875,2]
[391823971,1760887843662,-150.0,0.0002875,2]
[391823972,1760887843672,-150.0,0.0002875,2]
[391823973,1760887843681,-500.0,0.0002875,2]
[391823974,1760887843691,-500.0,0.00028756,8]
[391823975,1760887843700,-500.0,0.00028756,8]
[391823976,1760887843710,-500.0,0.00028756,8]
[391823977,1760887843720,-1760.32974808,0.00028756,3]
[391823978,1760887843730,-17603.2974808,0.00028757,3]
[391823979,1760887843740,-151.0,0.00028757,30]
[391823980,1760887843749,-151.0,0.00028757,30]
[391823981,1760887843759,-151.0,0.00028757,30]
[391823982,1760887843769,-1760.32974808,0.00028757,3]
[391823983,1760887843778,-1107.67778141,0.00028757,3]
[391823984,1760887843798,-305.48263459,0.00028757,3]
[391823985,1760887845995,-1293.6764,0.00028757,3]
[391823986,1760887846018,-10872.0,0.00028757,3]
[391823987,1760887846030,-2057.5,0.00028757,3]
[391823988,1760887846197,-306.372,0.00028757,3]
[391823989,1760887846376,-2173.39525568,0.00028757,3]
[391824057,1760887925107,151.0,0.00034176,30]
[391824058,1760887925144,151.0,0.00034176,30]
[391824059,1760887925251,151.0,0.00034176,30]
[391824060,1760887925294,1000.0,0.00034176,30]
[391824061,1760887925892,151.0,0.00034176,30]
[391824062,1760887926211,151.0,0.00034176,30]
[391824063,1760887926405,1000.0,0.00034176,30]
[391824064,1760887926567,151.0,0.00034176,30]
[391824065,1760887927146,1000.0,0.00034176,30]
[391824066,1760887927213,151.0,0.00034176,30]
[391824067,1760887927774,500.0,0.00034176,30]
[391824068,1760887927810,3000.0,0.00034176,30]
[391824069,1760887927847,1000.0,0.00034176,30]
[391824070,1760887927882,151.0,0.00034176,30]
[391824071,1760887928169,1000.0,0.00034176,30]
[391824072,1760887928430,3000.0,0.00034176,30]
[391824073,1760887928465,518.5,0.00034176,30]
[391824074,1760887928502,1000.0,0.00034176,30]
[391824075,1760887928538,151.0,0.00034176,30]
[391824076,1760887928973,1000.0,0.00034176,30]
[391824077,1760887929103,3000.0,0.00034176,30]
[391824078,1760887929144,1000.0,0.00034176,30]
[391824079,1760887929576,1000.0,0.00034176,30]
[391824080,1760887929700,3000.0,0.00034176,30]
[391824081,1760887929741,1000.0,0.00034176,30]
[391824082,1760887930213,1000.0,0.00034176,30]
[391824083,1760887930343,3000.0,0.00034176,30]
[391824084,1760887930416,1000.0,0.00034176,30]
[391824085,1760887930738,6888.0,0.00034176,30]
[391824086,1760887930819,1000.0,0.00034176,30]
[391824087,1760887930855,250.0,0.00034176,30]
[391824088,1760887930959,3000.0,0.00034176,30]
[391824089,1760887931023,151.0,0.00034176,30]
[391824090,1760887931374,7142.856,0.00034176,30]
[391824091,1760887931438,1000.0,0.00034176,30]
[391824092,1760887931474,250.0,0.00034176,30]
[391824093,1760887931580,3000.0,0.00034176,30]
[391824094,1760887932034,7407.141672,0.00034176,30]
[391824095,1760887932071,1000.0,0.00034176,30]
[391824096,1760887932156,250.0,0.00034176,30]
[391824097,1760887932213,3000.0,0.00034176,30]
[391824098,1760887932680,7681.20591386,0.00034176,30]
[391824099,1760887932716,1000.0,0.00034176,30]
[391824100,1760887932798,250.0,0.00034176,30]
[391824101,1760887932854,3000.0,0.00034176,30]
[391824102,1760887933290,7965.41053268,0.00034176,30]
[391824103,1760887933326,1000.0,0.00034176,30]
[391824104,1760887933459,250.0,0.00034176,30]
[391824105,1760887933646,158.57754829,0.00034176,30]
[391824106,1760887933922,8260.13072239,0.00034176,30]
[391824107,1760887933959,1000.0,0.00034176,30]
[391824108,1760887934032,250.0,0.00034176,30]
[391824109,1760887934102,250.0,0.00034176,30]
[391824110,1760887934595,151.0,0.00034176,30]
[391824111,1760887934632,8565.75555911,0.00034176,30]
[391824112,1760887934666,1000.0,0.00034176,30]
[391824113,1760887934699,250.0,0.00034176,30]
[391824114,1760887934746,250.0,0.00034176,30]
[391824115,1760887935330,250.0,0.00034176,30]
[391824116,1760887935365,8882.6885148,0.00034176,30]
[391824117,1760887935408,250.0,0.00034176,30]
[391824118,1760887935952,250.0,0.00034176,30]
[391824119,1760887936035,250.0,0.00034176,30]
[391824120,1760887936072,9211.34798985,0.00034176,30]
[391824121,1760887936341,220.84970255,0.00034176,30]
[391824122,1760887936378,1000.0,0.00034176,30]
[391824123,1760887936590,250.0,0.00034176,30]
[391824124,1760887936662,250.0,0.00034176,30]
[391824125,1760887936827,9552.16786547,0.00034176,30]
[391824126,1760887936982,1000.0,0.00034176,30]
[391824127,1760887937264,250.0,0.00034176,30]
[391824128,1760887937466,9905.5980765,0.00034176,30]
[391824129,1760887937647,1000.0,0.00034176,30]
[391824130,1760887937902,250.0,0.00034176,30]
[391824131,1760887938297,1000.0,0.00034176,30]
[391824132,1760887938574,250.0,0.00034176,30]
[391824133,1760887938946,1000.0,0.00034176,30]
[391824134,1760887939068,520.0,0.00034176,30]
[391824135,1760887939190,250.0,0.00034176,30]
[391824136,1760887939596,1000.0,0.00034176,30]
[391824137,1760887939898,539.24,0.00034176,30]
[391824138,1760887939958,250.0,0.00034176,30]
[391824139,1760887940008,250.0,0.00034176,30]
[391824140,1760887940630,250.0,0.00034176,30]
[391824141,1760887940668,250.0,0.00034176,30]
[391824142,1760887941274,250.0,0.00034176,30]
[391824143,1760887941314,250.0,0.00034176,30]
[391824144,1760887941933,250.0,0.00034176,30]
[391824145,1760887941970,250.0,0.00034176,30]
[391824146,1760887942814,250.0,0.00034176,30]
[391824153,1760888062541,1010697.0,0.00034176,60]
[391824169,1760888224882,857.46696926,0.00034167,30]
[391824170,1760888229870,357.28558722,0.00034167,30]
[391824171,1760888230605,318.80371514,0.00034167,30]
[391824172,1760888233074,952.85004901,0.00034167,30]
[391824180,1760888546487,157.86862221,0.00014,2]
[391824181,1760888573893,-216.60334364,0.00014899,2]
[391824190,1760888905143,847.76,0.00014,10]
[391824199,1760889032296,-856.93824271,0.00014985,2]
[391824200,1760889032306,-273.54620409,0.00014998,2]
[391824201,1760889032317,-1417.94158731,0.00014999,2]
[391824202,1760889032328,-490.0,0.00014999,2]
[391824203,1760889032338,-151.0,0.00016082,2]
[391824204,1760889032347,-151.0,0.00016091,2]
[391824205,1760889032357,-151.0,0.00016134,2]
[391824206,1760889032367,-151.0,0.00016145,2]
[391824207,1760889032378,-300.0,0.00016442,2]
[391824208,1760889032390,-300.0,0.00016497,2]
[391824210,1760889032399,-300.0,0.00016497,2]
[391824211,1760889032409,-1200.0,0.00016497,2]
[391824212,1760889032419,-2500.0,0.00016498,2]
[391824213,1760889032429,-300.0,0.00016498,2]
[391824214,1760889032440,-195.0,0.00016498,2]
[391824215,1760889032449,-164.92630483,0.00016498,2]
[391824216,1760889032459,-300.0,0.00016498,2]
[391824217,1760889032468,-300.0,0.00018027,2]
[391824218,1760889032479,-1680.0,0.00018117,2]
[391824219,1760889032489,-293.0,0.00019897,2]
[391824220,1760889032499,-2041.00753311,0.00024658,120]
[391824221,1760889032508,-610.0,0.00026195,2]
[391824222,1760889032517,-5000.0,0.00026226,2]
[391824223,1760889032527,-287.75,0.00026489,2]
[391824224,1760889032537,-742.52,0.00026949,2]
[391824225,1760889032548,-170.74,0.00027302,2]
[391824227,1760889032558,-1037.13,0.00027632,2]
[391824229,1760889032567,-944.54,0.00027667,2]
[391824231,1760889032576,-246.62,0.00027721,2]
[391824233,1760889032585,-905.57,0.00027849,2]
[391824235,1760889032595,-1705.74,0.00028007,2]
[391824237,1760889032604,-433.00342239,0.00028007,2]
[391824239,1760889032616,-660.1,0.00028007,2]
[391824241,1760889032627,-261.52,0.00028007,2]
[391824244,1760889032639,-279.40657761,0.00028007,2]
[391824247,1760889032649,-400.0,0.000284,10]
[391824249,1760889032657,-2000.0,0.000285,2]
[391824251,1760889032667,-300.0,0.000285,2]
[391824252,1760889032676,-331.09342239,0.000285,10]
[391824278,1760889040125,-271.42282622,0.000285,10]
[391824279,1760889040214,-297.48375139,0.000285,10]
[391824280,1760889040228,-1300.0,0.000286,10]
[391824281,1760889040238,-172.1464034,0.00028666,2]
[391824282,1760889040248,-114.61177921,0.00028667,2]
[391824283,1760889040260,-317.95980995,0.00028667,2]
[391824284,1760889040270,-238.86618965,0.00028673,2]
[391824285,1760889040288,-353.20025913,0.00028673,2]
[391824286,1760889040299,-1017.90321768,0.000287,10]
[391824287,1760889040459,-782.09678232,0.000287,10]
[391824288,1760889040469,-437.88904306,0.00028701,2]
[391824291,1760889043319,-3302.53210554,0.00028701,2]
[391824292,1760889043329,-2653.5557866,0.0002875,2]
[391824387,1760889046156,-2256.3,0.0002875,2]
[391824388,1760889046167,-101.05522652,0.0002875,2]
[391824389,1760889046177,-1125.59477348,0.0002875,20]
[391824390,1760889046215,-404.28122652,0.0002875,20]
[391824391,1760889046224,-166.039,0.0002875,20]
[391824392,1760889046234,-394.4776,0.0002875,2]
[391824393,1760889046243,-1255.95366233,0.00028754,2]
[391824394,1760889046255,-611.35178844,0.00028754,2]
[391824395,1760889046270,-12615.47591674,0.00028754,2]
[391824396,1760889046579,-19890.79282719,0.00028754,2]
[391824397,1760889046589,-3740.4211488,0.00028754,2]
[391824398,1760889046599,-445.7725526,0.00028754,2]
[391824399,1760889046608,-286.60210825,0.00028756,2]
[391824400,1760889046619,-175676.41136256,0.00028757,3]
[391824526,1760889139821,158.77,0.00013699,2]
[391824532,1760889389360,-1187.5,0.00027716,120]
[391824533,1760889389399,-3633697.05396768,0.00028767,120]
[391824534,1760889389433,-365115.44603232,0.00028767,120]
[391824535,1760889394591,-3268581.60793536,0.00028767,120]
[391824537,1760889424915,2165.00415131,0.00034162,120]
[391824538,1760889425304,160.0,0.00034162,30]
[391824539,1760889425341,200.0,0.00034162,30]
[391824540,1760889425425,200.0,0.00034162,30]
[391824541,1760889425463,151.0,0.00034162,30]
[391824542,1760889425498,625.72636359,0.00034162,30]
[391824543,1760889425531,300.0,0.00034162,30]
[391824544,1760889425621,151.0,0.00034162,30]
[391824545,1760889425909,160.0,0.00034162,30]
[391824546,1760889425948,200.0,0.00034162,30]
[391824547,1760889426020,207.4,0.00034162,30]
[391824548,1760889426190,151.0,0.00034162,30]
[391824549,1760889426227,311.1,0.00034162,30]
[391824550,1760889426278,156.587,0.00034162,30]
[391824551,1760889426528,160.0,0.00034162,30]
[391824552,1760889426563,200.0,0.00034162,30]
[391824553,1760889426629,215.0738,0.00034162,30]
[391824554,1760889426693,322.6107,0.00034162,30]
[391824555,1760889426868,151.0,0.00034162,30]
[391824556,1760889426901,162.380719,0.00034162,30]
[391824557,1760889427059,-281.7015,0.00020087,2]
[391824558,1760889427083,-153.78505854,0.00020187,2]
[391824559,1760889427131,160.0,0.00034162,30]
[391824560,1760889427167,200.0,0.00034162,30]
[391824561,1760889427308,223.0315306,0.00034162,30]
[391824562,1760889427349,334.5472959,0.00034162,30]
[391824563,1760889427481,151.0,0.00034162,30]
[391824564,1760889427519,168.3888056,0.00034162,30]
[391824565,1760889427735,160.0,0.00034162,30]
[391824566,1760889427773,200.0,0.00034162,30]
[391824567,1760889427807,200.0,0.00034162,30]
[391824568,1760889427879,520.0,0.00034162,30]
[391824569,1760889427924,231.28369723,0.00034162,30]
[391824570,1760889427975,346.92554585,0.00034162,30]
[391824571,1760889428016,151.0,0.00034162,30]
[391824572,1760889428111,151.0,0.00034162,30]
[391824573,1760889428155,174.61919141,0.00034162,30]
[391824574,1760889428353,160.0,0.00034162,30]
[391824575,1760889428392,200.0,0.00034162,30]
[391824576,1760889428453,200.0,0.00034162,30]
[391824577,1760889428551,539.24,0.00034162,30]
[391824578,1760889428591,239.84119403,0.00034162,30]
[391824579,1760889428630,151.0,0.00034162,30]
[391824580,1760889428669,359.76179104,0.00034162,30]
[391824581,1760889428956,160.0,0.00034162,30]
[391824582,1760889429007,200.0,0.00034162,30]
[391824583,1760889429103,200.0,0.00034162,30]
[391824584,1760889429159,559.19188,0.00034162,30]
[391824585,1760889429207,248.71531821,0.00034162,30]
[391824586,1760889429251,151.0,0.00034162,30]
[391824587,1760889429294,181.08010149,0.00034162,30]
[391824588,1760889429337,151.0,0.00034162,30]
[391824589,1760889429638,200.0,0.00034162,30]
[391824590,1760889429677,373.07297731,0.00034162,30]
[391824591,1760889429751,200.0,0.00034162,30]
[391824592,1760889429818,257.91778498,0.00034162,30]
[391824593,1760889429854,579.88197956,0.00034162,30]
[391824594,1760889429897,151.0,0.00034162,30]
[391824595,1760889429937,151.0,0.00034162,30]
[391824596,1760889429982,187.78006525,0.00034162,30]
[391824597,1760889430374,386.87667747,0.00034162,30]
[391824598,1760889430416,200.0,0.00034162,30]
[391824599,1760889430460,601.3376128,0.00034162,30]
[391824600,1760889430501,151.0,0.00034162,30]
[391824601,1760889430542,151.0,0.00034162,30]
[391824602,1760889431005,401.19111454,0.00034162,30]
[391824603,1760889431046,194.72792766,0.00034162,30]
[391824604,1760889431088,200.0,0.00034162,30]
[391824605,1760889431131,623.58710448,0.00034162,30]
[391824606,1760889431178,151.0,0.00034162,30]
[391824607,1760889431220,151.0,0.00034162,30]
[391824608,1760889431605,416.03518578,0.00034162,30]
[391824609,1760889431650,200.0,0.00034162,30]
[391824610,1760889431691,201.93286099,0.00034162,30]
[391824611,1760889431737,646.65982734,0.00034162,30]
[391824612,1760889431778,151.0,0.00034162,30]
[391824613,1760889431893,151.0,0.00034162,30]
[391824614,1760889432221,151.0,0.00034162,30]
[391824615,1760889432271,431.42848765,0.00034162,30]
[391824616,1760889432371,670.58624095,0.00034162,30]
[391824617,1760889432405,151.0,0.00034162,30]
[391824618,1760889432544,151.0,0.00034162,30]
[391824619,1760889432760,200.0,0.00034162,30]
[391824620,1760889432851,151.0,0.00034162,30]
[391824621,1760889432887,500.0,0.00034162,30]
[391824622,1760889432922,447.3913417,0.00034162,30]
[391824623,1760889432980,670.58624095,0.00034162,30]
[391824624,1760889433015,151.0,0.00034162,30]
[391824625,1760889433191,151.0,0.00034162,30]
[391824626,1760889433424,200.0,0.00034162,30]
[391824627,1760889433554,500.0,0.00034162,30]
[391824628,1760889433601,463.94482134,0.00034162,30]
[391824629,1760889433636,151.0,0.00034162,30]
[391824630,1760889433672,151.0,0.00034162,30]
[391824631,1760889433846,151.0,0.00034162,30]
[391824632,1760889434049,200.0,0.00034162,30]
[391824633,1760889434195,500.0,0.00034162,30]
[391824634,1760889434232,463.94482134,0.00034162,30]
[391824635,1760889434307,151.0,0.00034162,30]
[391824636,1760889434452,151.0,0.00034162,30]
[391824637,1760889434657,200.0,0.00034162,30]
[391824638,1760889434751,151.0,0.00034162,30]
[391824639,1760889434836,500.0,0.00034162,30]